bitfinex/quotes_ETHUSD_20230111
["timestamp","ask_amount","ask_price","bid_price","bid_amount"]
[1673423776968,0.09737065,1335.6,1335.5,30.57095309]
[1673423777163,0.09737065,1335.6,1335.5,40.4165407]
[1673423777638,0.09737065,1335.6,1335.5,41.6213353]
[1673423777808,0.09737065,1335.6,1335.5,41.25200639]
[1673423778021,0.09737065,1335.6,1335.5,36.50788415]
[1673423779162,0.09737065,1335.6,1335.5,34.27284026]
[1673423779588,0.09737065,1335.6,1335.5,35.38973834]
[1673423780041,0.09737065,1335.6,1335.5,34.27284026]
[1673423780377,0.09737065,1335.6,1335.5,35.38969827]
[1673423780524,0.09737065,1335.6,1335.5,17.05375535]
[1673423780737,0.09737065,1335.6,1335.5,14.80508692]
[1673423780962,0.09737065,1335.6,1335.5,22.29291692]
[1673423781173,0.09737065,1335.6,1335.5,23.79268535]
[1673423781378,0.09737065,1335.6,1335.5,31.28051535]
[1673423781629,0.09737065,1335.6,1335.5,30.16365734]
[1673423783618,0.09737065,1335.6,1335.5,22.67582734]
[1673423784040,0.09737065,1335.6,1335.5,30.16365734]
[1673423784252,0.09340599,1335.6,1335.5,30.16365734]
[1673423790559,0.09340599,1335.6,1335.5,30.25731203]
[1673423791509,0.09340599,1335.6,1335.5,28.66388891]
[1673423791813,0.09340599,1335.6,1335.5,30.25715064]
[1673423794119,0.09540599,1335.6,1335.5,28.66188891]
[1673423794356,0.09340599,1335.6,1335.5,28.66388891]
[1673423797108,0.09340599,1335.6,1335.5,27.45909431]
[1673423797624,0.09340599,1335.6,1335.5,28.66003083]
[1673423799151,0.09340599,1335.6,1335.5,30.25277132]
[1673423800987,0.09540599,1335.6,1335.5,30.25077132]
[1673423801154,0.09340599,1335.6,1335.5,30.25277132]
[1673423811573,0.09340599,1335.6,1335.5,31.36962933]
[1673423815417,0.09540599,1335.6,1335.5,31.36762933]
[1673423815564,0.09340599,1335.6,1335.5,33.04591225]
[1673423816723,0.09340599,1335.6,1335.5,25.55808225]
[1673423817684,0.09340599,1335.6,1335.5,24.44122424]
[1673423817888,0.09340599,1335.6,1335.5,9.46556424]
[1673423818141,0.09340599,1335.6,1335.5,4.06072619]
[1673423818326,0.09340599,1335.6,1335.5,18.97185329]
[1673423818558,0.09340599,1335.6,1335.5,19.03638619]
[1673423819077,0.09340599,1335.6,1335.5,20.62912668]
[1673423820290,0.09340599,1335.6,1335.5,25.40524234]
[1673423820502,0.09340599,1335.6,1335.5,26.99798283]
[1673423820750,0.09340599,1335.6,1335.5,29.23302672]
[1673423820944,0.09340599,1335.6,1335.5,26.99798283]
[1673423821338,0.09340599,1335.6,1335.5,31.99846479]
[1673423822827,0.09340599,1335.6,1335.5,34.23350868]
[1673423825987,0.09340599,1335.6,1335.5,31.99846479]
[1673423826571,0.09340599,1335.6,1335.5,34.23350868]
[1673423826756,0.09340599,1335.6,1335.5,31.99846479]
[1673423828014,0.08943645,1335.6,1335.5,34.23606106]
[1673423834403,0.08943645,1335.6,1335.5,26.74823106]
[1673423835170,0.08943645,1335.6,1335.5,9.53752717]
[1673423835363,0.08943645,1335.6,1335.5,15.43261668]
[1673423835568,0.08943645,1335.6,1335.5,25.15549057]
[1673423835786,0.08943645,1335.6,1335.5,22.92044668]
[1673423835959,0.08943645,1335.6,1335.5,24.51318717]
[1673423836172,0.08943645,1335.6,1335.5,17.02535717]
[1673423836536,0.08943645,1335.6,1335.5,22.92044668]
[1673423836918,0.08943645,1335.6,1335.5,24.51318717]
[1673423837128,0.08943645,1335.6,1335.5,17.02535717]
[1673423837529,0.08943645,1335.6,1335.5,2.94430472]
[1673423837761,0.08943645,1335.6,1335.5,2.87977182]
[1673423837967,0.08943645,1335.6,1335.5,10.36760182]
[1673423838175,0.08943645,1335.6,1335.5,10.43213472]
[1673423838480,0.08943645,1335.6,1335.5,17.91996472]
[1673423838931,0.08943645,1335.6,1335.5,19.51270521]
[1673423839427,0.08943645,1335.6,1335.5,27.00053521]
[1673423841472,0.08943645,1335.6,1335.5,12.02487521]
[1673423841636,0.08943645,1335.6,1335.5,10.43213472]
[1673423843523,0.08943645,1335.6,1335.5,17.91996472]
[1673423843734,0.08943645,1335.6,1335.5,19.51270521]
[1673423844530,0.08943645,1335.6,1335.5,11.55128157]
[1673423844692,0.08943645,1335.6,1335.5,19.03911157]
[1673423845333,0.08943645,1335.6,1335.5,20.63185206]
[1673423845541,0.08943645,1335.6,1335.5,28.24896239]
[1673423845749,0.08943645,1335.6,1335.5,29.84164718]
[1673423846049,0.08943645,1335.6,1335.5,28.72255603]
[1673423847845,0.08943645,1335.6,1335.5,29.84159615]
[1673423848086,0.08943645,1335.6,1335.5,27.00053521]
[1673423848305,0.08943645,1335.6,1335.5,28.1195721]
[1673423850681,0.08943645,1335.6,1335.5,5.6560821]
[1673423850936,0.08943645,1335.6,1335.5,11.55117161]
[1673423851299,0.08943645,1335.6,1335.5,26.52683161]
[1673423851509,0.08943645,1335.6,1335.5,28.1195721]
[1673423853614,0.08943645,1335.6,1335.5,33.23221299]
[1673423853941,0.08943645,1335.6,1335.5,34.34821999]
[1673423855826,0.08943645,1335.6,1335.5,32.1131761]
[1673423856987,0.08943645,1335.6,1335.5,35.1131761]
[1673423857214,0.47474775,1335.7,1335.6,2.31381651]
[1673423857404,0.47474775,1335.7,1335.6,36.13357915]
[1673423857635,0.47474775,1335.7,1335.6,35.29085254]
[1673423862278,0.47474775,1335.7,1335.6,33.05410795]
[1673423862702,0.47474775,1335.7,1335.6,33.61309674]
[1673423862892,0.47474775,1335.7,1335.6,36.40902748]
[1673423864270,0.47474775,1335.7,1335.6,33.61309674]
[1673423864660,0.47474775,1335.7,1335.6,36.40902748]
[1673423865326,0.47474775,1335.7,1335.6,33.61309674]
[1673423866139,0.47474775,1335.7,1335.6,35.28802954]
[1673423867219,0.47474775,1335.7,1335.6,33.61309674]
[1673423869073,0.47474775,1335.7,1335.6,35.28751462]
[1673423869287,0.47474775,1335.7,1335.6,35.28753854]
[1673423870815,0.47474775,1335.7,1335.6,15.22114794]
[1673423871023,0.47474775,1335.7,1335.6,17.37316172]
[1673423871183,0.47474775,1335.7,1335.6,2.39862172]
[1673423871389,0.47474775,1335.7,1335.6,1.21775303]
[1673423872068,16.50324063,1335.7,1335.6,0.01681651]
[1673423872282,34.60436063,1335.7,1335.6,0.01681651]
[1673423872491,37.40293993,1335.7,1335.6,0.01681651]
[1673423872802,27.41622993,1335.7,1335.6,0.01681651]
[1673423873011,19.92951993,1335.7,1335.6,0.01681651]
[1673423873548,28.06711948,1335.7,1335.6,0.01681651]
[1673423874118,27.41622993,1335.7,1335.6,0.01681651]
[1673423874332,19.92951993,1335.7,1335.6,0.01681651]
[1673423876581,18.80894063,1335.7,1335.6,0.01681651]
[1673423877179,19.92951993,1335.7,1335.6,0.01681651]
[1673423877619,38.91817405,1335.7,1335.6,0.01681651]
[1673423877840,40.10106909,1335.7,1335.6,0.01681651]
[1673423880856,43.10106909,1335.7,1335.6,0.01681651]
[1673423882212,43.10106909,1335.7,1335.6,0.01316028]
[1673423885097,41.41873754,1335.7,1335.6,0.01316028]
[1673423885264,33.93202754,1335.7,1335.6,0.01316028]
[1673423885468,17.7757125,1335.7,1335.6,0.01316028]
[1673423885675,25.2624225,1335.7,1335.6,0.01316028]
[1673423886253,32.7491325,1335.7,1335.6,0.01316028]
[1673423886487,24.61151993,1335.7,1335.6,0.01316028]
[1673423888337,32.09822993,1335.7,1335.6,0.01316028]
[1673423890154,30.97765063,1335.7,1335.6,0.01316028]
[1673423890309,39.58493993,1335.7,1335.6,0.01316028]
[1673423891311,40.23521182,1335.7,1335.6,0.01316028]
[1673423892303,40.23487922,1335.7,1335.6,0.01316028]
[1673423892454,38.55287922,1335.7,1335.6,0.01316028]
[1673423892818,38.55287688,1335.7,1335.6,0.01316028]
[1673423893764,37.90293993,1335.7,1335.6,0.01316028]
[1673423896710,36.78236063,1335.7,1335.6,0.01316028]
[1673423896921,37.90293993,1335.7,1335.6,0.01316028]
[1673423898497,41.97755248,1335.7,1335.6,0.01316028]
[1673423898713,44.22066121,1335.7,1335.6,0.01316028]
[1673423898920,41.97755248,1335.7,1335.6,0.01316028]
[1673423899714,43.09593435,1335.7,1335.6,0.01316028]
[1673423903839,42.53423435,1335.7,1335.6,0.01316028]
[1673423904064,42.53423435,1335.7,1335.6,0.00987268]
[1673423904283,42.53468014,1335.7,1335.6,0.00987268]
[1673423905175,39.67139263,1335.7,1335.6,0.00987268]
[1673423905386,40.85286886,1335.7,1335.6,0.00987268]
[1673423906238,42.53520041,1335.7,1335.6,0.00987268]
[1673423908275,41.41637275,1335.7,1335.6,0.00987268]
[1673423910479,44.78103584,1335.7,1335.6,0.00987268]
[1673423911501,43.09903584,1335.7,1335.6,0.00987268]
[1673423914335,41.42103584,1335.7,1335.6,0.00987268]
[1673423919300,39.17792711,1335.7,1335.6,0.00987268]
[1673423919510,41.42304036,1335.7,1335.6,0.00987268]
[1673423919937,39.17792711,1335.7,1335.6,0.00987268]
[1673423920252,41.42304039,1335.7,1335.6,0.00987268]
[1673423922948,33.93633039,1335.7,1335.6,0.00987268]
[1673423924297,26.44962039,1335.7,1335.6,0.00987268]
[1673423924508,11.41490224,1335.7,1335.6,0.00987268]
[1673423925894,18.90161224,1335.7,1335.6,0.00987268]
[1673423926851,11.41490224,1335.7,1335.6,0.00987268]
[1673423927322,13.09861739,1335.7,1335.6,0.00987268]
[1673423927976,11.41490224,1335.7,1335.6,0.00987268]
[1673423928220,13.09863635,1335.7,1335.6,0.00987268]
[1673423929244,13.09863635,1335.7,1335.4,16.57069031]
[1673423929457,5.56992528,1335.6,1335.5,1.20015299]
[1673423929778,5.63592528,1335.6,1335.5,1.20015299]
[1673423933070,4.98602094,1335.6,1335.5,8.68798299]
[1673423933246,3.79766064,1335.6,1335.5,1.26468589]
[1673423933441,6.34684216,1335.7,1335.5,1.20015299]
[1673423933652,6.34684216,1335.7,1335.5,32.04900131]
[1673423933653,8.46076869,1335.7,1335.5,32.04900131]
[1673423933867,8.46076869,1335.7,1335.5,11.19453402]
[1673423934123,5.46076869,1335.7,1335.5,11.19453402]
[1673423934293,5.46076869,1335.7,1335.5,10.07819823]
[1673423934507,5.46076869,1335.7,1335.5,11.66692513]
[1673423938410,5.46076869,1335.7,1335.6,1.16669251]
[1673423938755,6.11288453,1335.7,1335.6,1.16669251]
[1673423939057,5.46076869,1335.7,1335.6,1.16669251]
[1673423939454,4.33840839,1335.7,1335.6,1.16669251]
[1673423939661,4.27240839,1335.7,1335.6,1.16669251]
[1673423939887,5.39476869,1335.7,1335.6,1.16669251]
[1673423940081,22.77009815,1335.7,1335.5,0.0645329]
[1673423940305,5.57221866,1335.6,1335.4,20.74287452]
[1673423940523,3.79766064,1335.5,1335.4,20.74287452]
[1673423940821,3.79766064,1335.5,1335.4,1.67738349]
[1673423941028,3.79766064,1335.5,1335.4,1.61285059]
[1673423943683,16.31694203,1335.8,1335.4,10.47374118]
[1673423943842,11.27261841,1335.8,1335.7,1.11798954]
[1673423944048,11.27261841,1335.8,1335.7,1.47896993]
[1673423944385,11.27261841,1335.8,1335.7,8.96567993]
[1673423944592,11.27261841,1335.8,1335.7,1.54350283]
[1673423944778,11.27261841,1335.8,1335.7,8.96567993]
[1673423944991,11.27261841,1335.8,1335.7,10.14820237]
[1673423945249,11.27261841,1335.8,1335.7,13.76186925]
[1673423945425,11.27261841,1335.8,1335.7,10.14820237]
[1673423946231,11.27261841,1335.8,1335.7,9.03021283]
[1673423946571,11.27261841,1335.8,1335.7,16.51692283]
[1673423948831,11.27261841,1335.8,1335.7,1.54350283]
[1673423948985,11.27261841,1335.8,1335.7,1.9497035]
[1673423950040,11.27261841,1335.8,1335.7,0.75009453]
[1673423950685,26.24491841,1335.8,1335.7,0.75009453]
[1673423950893,26.24491841,1335.8,1335.7,0.47073357]
[1673423951142,18.75876841,1335.8,1335.7,0.47073357]
[1673423951357,11.27261841,1335.8,1335.7,0.47073357]
[1673423963173,11.27261841,1335.8,1335.7,7.95744357]
[1673423963537,11.27261841,1335.8,1335.7,0.53526647]
[1673423963771,11.27261841,1335.8,1335.7,0.47073357]
[1673423963966,26.24491841,1335.8,1335.7,0.47073357]
[1673423965000,11.27261841,1335.8,1335.7,0.47073357]
[1673423978575,11.27261841,1335.8,1335.7,2.21681629]
[1673423979403,11.27261841,1335.8,1335.7,9.70352629]
[1673423979619,11.27261841,1335.8,1335.7,5.06732916]
[1673423979620,11.26919895,1335.8,1335.7,5.06732916]
[1673423980216,11.26919895,1335.8,1335.7,13.6720287]
[1673423980437,11.26919895,1335.8,1335.7,21.1587387]
[1673423981721,11.26919895,1335.8,1335.7,13.6720287]
[1673423982329,11.26919895,1335.8,1335.7,28.6454487]
[1673423984245,11.26919895,1335.8,1335.7,21.1587387]
[1673423984420,11.26919895,1335.8,1335.7,28.6454487]
[1673423984954,11.26919895,1335.8,1335.7,21.1587387]
[1673423986971,11.26919895,1335.8,1335.7,13.6720287]
[1673423987348,11.26919895,1335.8,1335.7,28.6454487]
[1673423987557,11.26919895,1335.8,1335.7,21.1587387]
[1673423989029,11.26919895,1335.8,1335.7,30.32106872]
[1673423989872,11.26919895,1335.8,1335.7,28.6454487]
[1673423990454,14.07919895,1335.8,1335.7,28.6454487]
[1673423991174,14.07919895,1335.8,1335.7,25.85946873]
[1673423991355,14.07919895,1335.8,1335.7,3.39933873]
[1673423991566,14.07919895,1335.8,1335.7,3.33480583]
[1673423994054,14.07919895,1335.8,1335.7,2.21681629]
[1673423994201,14.07919895,1335.8,1335.7,3.33480583]
[1673423996137,14.07919895,1335.8,1335.7,18.30822583]
[1673423996314,14.07919895,1335.8,1335.7,21.34995306]
[1673423996652,14.07919895,1335.8,1335.7,30.51228308]
[1673423997608,14.07919895,1335.8,1335.7,28.83666306]
[1673423999334,14.07919895,1335.8,1335.7,30.51228308]
[1673423999550,14.07919895,1335.8,1335.7,34.12594996]
[1673423999762,14.07919895,1335.8,1335.7,31.39376453]
[1673424000017,14.07919895,1335.8,1335.7,29.39429354]
[1673424000230,14.07919895,1335.8,1335.7,31.4014036]
[1673424000542,14.07633775,1335.8,1335.7,31.4014036]
[1673424002024,14.07633775,1335.8,1335.7,29.72296411]
[1673424006122,11.10507677,1335.8,1335.7,32.75156091]
[1673424006280,11.10507677,1335.8,1335.7,37.48925655]
[1673424006494,11.10507677,1335.8,1335.7,32.52036326]
[1673424006736,11.10507677,1335.8,1335.7,30.51652908]
[1673424006931,11.10507677,1335.8,1335.7,35.25422472]
[1673424007148,11.10507677,1335.8,1335.7,37.2580589]
[1673424007377,11.10507677,1335.8,1335.7,32.52036326]
[1673424007603,11.10507677,1335.8,1335.7,30.51652908]
[1673424008132,11.10507677,1335.8,1335.7,29.95304391]
[1673424008653,8.29507677,1335.8,1335.7,27.7195129]
[1673424009122,8.29507677,1335.8,1335.7,29.39493209]
[1673424009332,8.29507677,1335.8,1335.7,27.16101811]
[1673424014315,8.29507677,1335.8,1335.7,29.39493209]
[1673424015007,8.29507677,1335.8,1335.7,27.7195129]
[1673424017112,8.29507677,1335.8,1335.7,29.39498226]
[1673424019004,8.29507677,1335.8,1335.7,23.62569999]
[1673424019540,8.29507677,1335.8,1335.7,25.30116935]
[1673424019950,8.29507677,1335.8,1335.7,24.18387395]
[1673424020155,8.29507677,1335.8,1335.7,25.30129252]
[1673424020452,8.29507677,1335.8,1335.7,25.30119178]
[1673424020632,8.29507677,1335.8,1335.7,24.18387395]
[1673424020942,8.29507677,1335.8,1335.7,26.41778793]
[1673424021577,5.32372146,1335.8,1335.7,30.28838706]
[1673424022499,5.32372146,1335.8,1335.7,28.05447308]
[1673424022711,5.32372146,1335.8,1335.7,30.28838706]
[1673424023116,5.32372146,1335.8,1335.7,30.28638706]
[1673424023304,5.32372146,1335.8,1335.7,30.28838706]
[1673424024726,5.32372146,1335.8,1335.7,28.05447308]
[1673424025457,5.32372146,1335.8,1335.7,30.28838706]
[1673424025667,5.32372146,1335.8,1335.7,28.05447308]
[1673424025982,5.32372146,1335.8,1335.7,30.28838706]
[1673424026561,5.32372146,1335.8,1335.7,28.05447308]
[1673424027122,5.32372146,1335.8,1335.7,36.5674919]
[1673424027451,5.32372146,1335.8,1335.7,38.57132608]
[1673424028264,5.32372146,1335.8,1335.7,36.64415103]
[1673424028475,5.32372146,1335.8,1335.7,31.8429177]
[1673424029468,5.32372146,1335.8,1335.7,34.18218413]
[1673424029627,5.32372146,1335.8,1335.7,36.18601831]
[1673424030373,5.32372146,1335.8,1335.7,38.98341746]
[1673424031260,5.32372146,1335.8,1335.7,47.5056523]
[1673424031415,5.32372146,1335.8,1335.7,42.78043223]
[1673424033773,5.32372146,1335.8,1335.7,39.98303308]
[1673424033990,5.32372146,1335.8,1335.7,42.78043223]
[1673424036508,2.35239927,1335.8,1335.7,42.78043223]
[1673424036670,2.28639927,1335.8,1335.7,42.78043223]
[1673424037331,2.28639927,1335.8,1335.7,40.54651825]
[1673424044864,2.28639927,1335.8,1335.7,36.74885761]
[1673424046798,2.28639927,1335.8,1335.7,36.98317174]
[1673424046993,2.28639927,1335.8,1335.7,38.98700592]
[1673424050547,2.28639927,1335.8,1335.7,36.98317174]
[1673424050779,2.28639927,1335.8,1335.7,36.74885761]
[1673424051024,2.28639927,1335.8,1335.7,27.25831343]
[1673424051254,2.28639927,1335.8,1335.7,29.49664684]
[1673424051463,2.28639927,1335.8,1335.7,27.25831343]
[1673424051860,2.28639927,1335.8,1335.7,29.26214761]
[1673424052061,2.28639927,1335.8,1335.7,16.52720533]
[1673424052271,2.28639927,1335.8,1335.7,14.52337115]
[1673424054055,2.28639927,1335.8,1335.7,22.01008115]
[1673424054989,2.28639927,1335.8,1335.7,29.49679115]
[1673424055274,2.28639927,1335.8,1335.7,36.98350115]
[1673424055559,9.27700569,1335.9,1335.8,9.29579517]
[1673424055728,9.27700569,1335.9,1335.8,29.99560842]
[1673424055936,9.27700569,1335.9,1335.8,31.9994426]
[1673424058602,9.27700569,1335.9,1335.8,30.32069099]
[1673424059352,9.27700569,1335.9,1335.8,32.12353242]
[1673424061141,9.27700569,1335.9,1335.8,34.92093157]
[1673424061345,9.27700569,1335.9,1335.8,32.12353242]
[1673424061549,9.27700569,1335.9,1335.8,34.92093157]
[1673424061790,9.27700569,1335.9,1335.8,32.12353242]
[1673424062008,9.27700569,1335.9,1335.8,34.92093157]
[1673424062606,9.27700569,1335.9,1335.8,32.12353242]
[1673424065016,9.27700569,1335.9,1335.8,34.92093157]
[1673424069886,9.27700569,1335.9,1335.8,35.15093157]
[1673424070424,9.27700569,1335.9,1335.8,32.91259609]
[1673424071684,6.30595804,1335.9,1335.8,41.58950914]
[1673424071895,6.30595804,1335.9,1335.8,44.38705665]
[1673424072268,6.30595804,1335.9,1335.8,41.58950914]
[1673424072520,6.30595804,1335.9,1335.8,36.91285758]
[1673424073863,6.30595804,1335.9,1335.8,39.70872348]
[1673424078384,6.30595804,1335.9,1335.8,41.39472348]
[1673424078906,6.30595804,1335.9,1335.8,46.07777678]
[1673424079853,6.30595804,1335.9,1335.8,41.39472348]
[1673424080256,6.30595804,1335.9,1335.8,38.14723673]
[1673424080582,6.30595804,1335.9,1335.8,35.0953953]
[1673424081020,6.30595804,1335.9,1335.8,33.97678819]
[1673424081231,6.30595804,1335.9,1335.8,32.2995294]
[1673424082729,6.30595804,1335.9,1335.8,35.0953953]
[1673424082919,6.30595804,1335.9,1335.8,32.2995294]
[1673424083975,6.30595804,1335.9,1335.8,35.0953953]
[1673424084621,6.30595804,1335.9,1335.8,30.29569522]
[1673424084836,6.30595804,1335.9,1335.8,32.2995294]
[1673424085141,6.30595804,1335.9,1335.8,29.2995294]
[1673424085358,6.30595804,1335.9,1335.8,28.97296734]
[1673424085599,6.30595804,1335.9,1335.8,27.29569522]
[1673424086428,6.30595804,1335.9,1335.8,27.85538723]
[1673424086615,3.33492895,1335.9,1335.8,30.09137197]
[1673424086845,3.26892895,1335.9,1335.8,32.09520615]
[1673424087051,3.26892895,1335.9,1335.8,30.09137197]
[1673424087369,3.26892895,1335.9,1335.8,29.85922141]
[1673424087698,3.26892895,1335.9,1335.8,27.85538723]
[1673424088129,3.26892895,1335.9,1335.8,30.09163713]
[1673424089340,3.26892895,1335.9,1335.8,29.85922141]
[1673424089545,3.26892895,1335.9,1335.8,27.85538723]
[1673424089792,3.26892895,1335.9,1335.8,30.09198024]
[1673424089990,3.26892895,1335.9,1335.8,29.06994852]
[1673424090171,3.26892895,1335.9,1335.8,27.06611434]
[1673424091650,3.26892895,1335.9,1335.8,29.86198024]
[1673424094065,3.26892895,1335.9,1335.8,27.06611434]
[1673424098424,3.26892895,1335.9,1335.8,29.86198024]
[1673424098804,3.26898025,1335.9,1335.8,29.86198024]
[1673424100507,3.26898025,1335.9,1335.8,34.19056748]
[1673424102054,3.26898025,1335.9,1335.8,28.74504824]
[1673424102303,3.26898025,1335.9,1335.8,27.62779052]
[1673424102508,3.26898025,1335.9,1335.8,28.74504824]
[1673424103123,3.26898025,1335.9,1335.8,27.06611434]
[1673424106152,3.26898025,1335.9,1335.8,29.86198024]
[1673424106416,3.26898025,1335.9,1335.8,33.65449616]
[1673424108785,3.26605261,1335.9,1335.8,33.65449616]
[1673424109861,3.26605261,1335.9,1335.8,33.42173733]
[1673424110084,3.26605261,1335.9,1335.8,31.41790315]
[1673424110786,0.29496776,1335.9,1335.8,31.41790315]
[1673424112768,0.29496776,1335.9,1335.8,31.64790315]
[1673424113732,0.29496776,1335.9,1335.8,28.74672529]
[1673424113733,1.59996776,1335.9,1335.8,28.74672529]
[1673424113923,1.59996776,1335.9,1335.8,27.06792359]
[1673424115130,0.29496776,1335.9,1335.8,29.86378949]
[1673424115495,0.29496776,1335.9,1335.8,32.21575564]
[1673424115706,0.29496776,1335.9,1335.8,32.44575564]
[1673424115954,0.29496776,1335.9,1335.8,31.88511047]
[1673424116557,0.29496776,1335.9,1335.8,33.88894465]
[1673424116767,0.29496776,1335.9,1335.8,31.88511047]
[1673424118134,0.29496776,1335.9,1335.8,31.65533807]
[1673424119563,0.29496776,1335.9,1335.8,31.6553706]
[1673424120704,0.29496776,1335.9,1335.8,28.8595047]
[1673424120912,0.29496776,1335.9,1335.8,29.30340445]
[1673424121382,0.29496776,1335.9,1335.8,29.89138395]
[1673424121909,0.29496776,1335.9,1335.8,27.09551805]
[1673424122443,8.0316365,1335.9,1335.8,4.07783089]
[1673424122646,14.95689714,1335.9,1335.8,5.13373974]
[1673424122972,16.91072051,1335.9,1335.8,11.00435154]
[1673424123277,14.41072051,1335.9,1335.8,11.00435154]
[1673424123447,9.66505177,1335.9,1335.8,9.88455566]
[1673424123649,9.66505177,1335.9,1335.8,2.39840566]
[1673424123860,9.66505177,1335.9,1335.8,17.30681863]
[1673424124116,9.66505177,1335.9,1335.8,11.00435154]
[1673424125090,9.66505177,1335.9,1335.8,18.49050154]
[1673424127925,9.66505177,1335.9,1335.8,9.88455566]
[1673424129663,9.66505177,1335.9,1335.8,11.00435154]
[1673424131458,9.66505177,1335.9,1335.8,17.37070566]
[1673424131689,9.66505177,1335.9,1335.8,18.49050154]
[1673424132023,9.10345177,1335.9,1335.8,9.88455566]
[1673424132336,9.10345177,1335.9,1335.8,11.00435154]
[1673424132756,9.10345177,1335.9,1335.8,18.49050154]
[1673424132927,9.10345177,1335.9,1335.8,17.37070566]
[1673424133570,9.10345177,1335.9,1335.8,9.88455566]
[1673424137456,9.10345177,1335.9,1335.8,17.37070566]
[1673424142966,9.10345177,1335.9,1335.8,24.85685566]
[1673424143143,5.8446284,1335.9,1335.8,18.49050154]
[1673424143354,2.04696776,1335.9,1335.8,18.49050154]
[1673424143582,0.29161696,1335.9,1335.8,18.49050154]
[1673424144317,0.29161696,1335.9,1335.8,11.00435154]
[1673424144525,0.29161696,1335.9,1335.8,3.51820154]
[1673424144687,0.29161696,1335.9,1335.8,3.45431451]
[1673424146313,0.29161696,1335.9,1335.8,2.33451863]
[1673424147843,0.29161696,1335.9,1335.8,3.45431451]
[1673424148167,0.29161696,1335.9,1335.8,2.33451863]
[1673424151669,1.59661696,1335.9,1335.8,2.33451863]
[1673424151855,3.76764586,1335.9,1335.8,2.33451863]
[1673424152355,5.43764586,1335.9,1335.8,2.33451863]
[1673424152569,5.50364586,1335.9,1335.8,2.33451863]
[1673424156460,3.33261696,1335.9,1335.8,2.33451863]
[1673424156663,3.26661696,1335.9,1335.8,2.33451863]
[1673424157771,3.26661696,1335.9,1335.8,3.45431451]
[1673424158349,1.96161696,1335.9,1335.8,3.45431451]
[1673424159617,1.96161696,1335.9,1335.8,2.33451863]
[1673424159859,1.96161696,1335.9,1335.8,3.45431451]
[1673424162372,8.33089537,1335.9,1335.8,3.45431451]
[1673424162589,8.39689537,1335.9,1335.8,3.45431451]
[1673424163720,9.51882026,1335.9,1335.8,2.33451863]
[1673424164565,10.45400375,1335.9,1335.8,2.33451863]
[1673424164774,9.51882026,1335.9,1335.8,3.45431451]
[1673424165302,9.51882026,1335.9,1335.8,2.33451863]
[1673424166050,8.39689537,1335.9,1335.8,3.45431451]
[1673424166843,10.45405602,1335.9,1335.8,2.33451863]
[1673424167296,9.51882026,1335.9,1335.8,2.33451863]
[1673424168718,8.39689537,1335.9,1335.8,3.45431451]
[1673424168920,5.8252776,1335.9,1335.8,3.45431451]
[1673424174094,6.94720249,1335.9,1335.8,2.33451863]
[1673424174612,5.8252776,1335.9,1335.8,3.45431451]
[1673424174916,7.88244899,1335.9,1335.8,1.5068242]
[1673424177408,4.1552776,1335.9,1335.8,1.5068242]
[1673424177613,4.0892776,1335.9,1335.8,1.5068242]
[1673424178248,5.21120249,1335.9,1335.8,1.5068242]
[1673424178458,4.1552776,1335.9,1335.8,2.62662008]
[1673424178650,4.0892776,1335.9,1335.8,10.11277008]
[1673424178894,4.0892776,1335.9,1335.8,10.17665711]
[1673424179896,4.0892776,1335.9,1335.8,2.69050711]
[1673424180120,4.0892776,1335.9,1335.8,10.11277008]
[1673424180421,4.0892776,1335.9,1335.8,10.17665711]
[1673424180583,4.0892776,1335.9,1335.8,2.69050711]
[1673424180801,4.0892776,1335.9,1335.8,2.62662008]
[1673424181526,4.0892776,1335.9,1335.8,4.30604531]
[1673424181941,4.0892776,1335.9,1335.8,11.79219531]
[1673424182196,4.0892776,1335.9,1335.8,11.85608234]
[1673424182409,4.0892776,1335.9,1335.8,2.69050711]
[1673424182629,4.0892776,1335.9,1335.8,4.30604531]
[1673424182800,4.0892776,1335.9,1335.8,2.62662008]
[1673424183005,4.0892776,1335.9,1335.8,4.30604531]
[1673424183782,4.0892776,1335.9,1335.8,11.79219531]
[1673424184106,4.0892776,1335.9,1335.8,11.85608234]
[1673424184904,4.0892776,1335.9,1335.8,19.34223234]
[1673424185471,4.0892776,1335.9,1335.8,11.85608234]
[1673424185691,4.0892776,1335.9,1335.8,2.69050711]
[1673424185843,4.0892776,1335.9,1335.8,2.62662008]
[1673424188400,4.0912776,1335.9,1335.8,2.62662008]
[1673424188618,4.0892776,1335.9,1335.8,2.62662008]
[1673424189212,6.43112131,1335.9,1335.8,2.62662008]
[1673424189421,6.49712131,1335.9,1335.8,2.62662008]
[1673424189666,5.27720249,1335.9,1335.8,2.62662008]
[1673424190947,4.1552776,1335.9,1335.8,2.62662008]
[1673424191147,4.0892776,1335.9,1335.8,2.62662008]
[1673424195388,5.21120249,1335.9,1335.8,1.5068242]
[1673424195561,4.1552776,1335.9,1335.8,2.62662008]
[1673424195775,4.0892776,1335.9,1335.8,2.62662008]
[1673424196228,5.21120249,1335.9,1335.8,2.62662008]
[1673424196432,7.31157932,1335.9,1335.8,2.62662008]
[1673424197030,6.18965443,1335.9,1335.8,2.62662008]
[1673424198813,7.31157932,1335.9,1335.8,2.62662008]
[1673424199480,6.18965443,1335.9,1335.8,2.62662008]
[1673424201341,4.1552776,1335.9,1335.8,2.62662008]
[1673424201509,4.0892776,1335.9,1335.8,2.62662008]
[1673424203872,6.14658201,1335.9,1335.8,1.5068242]
[1673424204242,6.21258201,1335.9,1335.8,1.5068242]
[1673424205342,6.21257539,1335.9,1335.8,1.5068242]
[1673424206966,5.27720249,1335.9,1335.8,1.5068242]
[1673424207128,6.21254075,1335.9,1335.8,1.5068242]
[1673424207546,5.27720249,1335.9,1335.8,2.62662008]
[1673424209438,4.1552776,1335.9,1335.8,2.62662008]
[1673424209651,4.0892776,1335.9,1335.8,2.62662008]
[1673424210751,5.21120249,1335.9,1335.8,2.62662008]
[1673424210962,6.2125612,1335.9,1335.8,1.5068242]
[1673424220083,6.21238703,1335.9,1335.8,1.5068242]
[1673424220309,5.27720249,1335.9,1335.8,1.5068242]
[1673424220509,6.21238434,1335.9,1335.8,1.5068242]
[1673424220684,5.27720249,1335.9,1335.8,1.5068242]
[1673424221732,6.21239929,1335.9,1335.8,1.5068242]
[1673424226839,5.27720249,1335.9,1335.8,1.5068242]
[1673424227555,6.21211613,1335.9,1335.8,1.5068242]
[1673424227945,5.27720249,1335.9,1335.8,1.5068242]
[1673424228622,6.21215706,1335.9,1335.8,1.5068242]
[1673424230668,15.43263804,1335.9,1335.8,0.58435084]
[1673424230881,16.26974603,1335.9,1335.8,0.58435084]
[1673424231105,15.71013104,1335.9,1335.8,0.58435084]
[1673424231543,18.51494327,1335.9,1335.8,0.58435084]
[1673424231764,26.00053327,1335.9,1335.8,0.58435084]
[1673424231986,23.19572104,1335.9,1335.8,0.58435084]
[1673424233616,24.87879264,1335.9,1335.8,0.58435084]
[1673424234086,10.40233666,1335.9,1335.8,0.58435084]
[1673424234977,9.84101929,1335.9,1335.8,0.58435084]
[1673424235267,10.96307493,1335.9,1335.8,0.58435084]
[1673424236714,9.29307493,1335.9,1335.8,0.58435084]
[1673424238709,8.73087653,1335.9,1335.8,0.58435084]